bitfinex-derivatives/quotes_SOLF0:USTF0_20250720
["timestamp","ask_amount","ask_price","bid_price","bid_amount"]
[1753020467951,2.88,182.83,182.81,3.08]
[1753020467952,5.14277729,182.83,182.81,3.08]
[1753020468152,2.88,182.82,182.75,3.08]
[1753020468448,2.26277729,182.79,182.75,3.08]
[1753020468646,5.14277729,182.79,182.78,3.08]
[1753020468853,5.14277729,182.79,182.76,3.08]
[1753020469048,2.88,182.78,182.77,3.08]
[1753020469751,2.88,182.77,182.75,3.08]
[1753020469963,2.26277729,182.76,182.75,3.08]
[1753020470152,2.88,182.77,182.7,3.08]
[1753020470153,2.26277729,182.77,182.7,3.08]
[1753020470359,5.14277729,182.79,182.77,3.08]
[1753020470556,2.88,182.84,182.72,2.26277729]
[1753020470759,2.26277729,182.81,182.73,3.08]
[1753020470957,2.88,182.8,182.73,3.08]
[1753020471157,5.14277729,182.79,182.73,3.08]
[1753020471659,5.14277729,182.79,182.77,3.08]
[1753020472060,2.88,182.78,182.77,3.08]
[1753020472457,2.26277729,182.79,182.77,3.08]
[1753020472664,5.14277729,182.79,182.77,3.08]
[1753020473062,2.88,182.78,182.77,5.4689]
[1753020473463,2.88,182.78,182.77,8.5489]
[1753020475560,2.88,182.82,182.79,3.08]
[1753020475763,2.26277729,182.81,182.74,3.08]
[1753020476155,5.14277729,182.81,182.77,3.08]
[1753020476663,5.14277729,182.81,182.79,5.4684]
[1753020476863,5.14277729,182.81,182.79,8.5484]
[1753020477062,2.88,182.81,182.8,3.08]
[1753020477362,5.14277729,182.81,182.8,3.08]
[1753020477562,2.88,182.81,182.8,3.08]
[1753020477765,5.14277729,182.81,182.8,8.5481]
[1753020477960,5.14277729,182.81,182.8,3.08]
[1753020478461,2.88,182.79,182.77,3.21]
[1753020478764,5.14277729,182.79,182.77,3.21]
[1753020479062,5.14277729,182.79,182.78,8.6785]
[1753020479264,5.14277729,182.79,182.78,5.4685]
[1753020479763,5.14277729,182.79,182.78,8.6785]
[1753020479960,2.26277729,182.79,182.78,8.6785]
[1753020480166,2.88,182.81,182.78,3.21]
[1753020480366,2.26277729,182.8,182.79,3.21]
[1753020480758,2.26277729,182.8,182.79,8.6782]
[1753020480961,5.14277729,182.8,182.79,8.6782]
[1753020481462,5.14277729,182.8,182.79,3.21]
[1753020481663,2.88,182.79,182.78,5.4687]
[1753020481863,2.88,182.79,182.78,8.6787]
[1753020482265,2.88,182.79,182.78,3.21]
[1753020482866,2.88,182.85,182.77,8.6789]
[1753020483162,2.27079716,182.84,182.78,8.6787]
[1753020483358,2.88,182.79,182.78,3.21]
[1753020483555,2.88,182.79,182.78,8.6786]
[1753020484158,5.14277729,182.79,182.78,8.6786]
[1753020485463,2.88,182.78,182.75,3.21]
[1753020485668,2.26277729,182.77,182.76,3.21]
[1753020486559,2.26277729,182.77,182.76,8.6793]
[1753020487771,2.26277729,182.79,182.78,5.4687]
[1753020487970,2.26277729,182.79,182.78,8.6787]
[1753020488270,5.14277729,182.79,182.78,3.21]
[1753020488463,2.88,182.78,182.77,3.21]
[1753020489372,2.88,182.78,182.77,8.679]
[1753020489968,2.26277729,182.79,182.77,5.469]
[1753020490175,5.14277729,182.79,182.78,3.21]
[1753020490679,5.14277729,182.79,182.78,8.6787]
[1753020490978,5.14277729,182.79,182.78,3.21]
[1753020491964,2.26277729,182.8,182.79,3.21]
[1753020492577,5.14277729,182.8,182.79,8.6783]
[1753020494172,5.14277729,182.8,182.79,3.21]
[1753020494372,5.14277729,182.8,182.78,5.4687]
[1753020494373,2.88,182.79,182.78,5.4687]
[1753020495076,2.88,182.79,182.78,8.6787]
[1753020495978,2.26277729,182.8,182.79,8.6784]
[1753020496179,2.26277729,182.8,182.72,3.21]
[1753020496773,2.26277729,182.8,182.79,8.6784]
[1753020497077,5.14277729,182.8,182.79,3.21]
[1753020497277,2.88,182.78,182.77,3.21]
[1753020497575,5.14277729,182.78,182.77,3.21]
[1753020497778,2.88,182.76,182.72,3.21]
[1753020497976,5.14277729,182.76,182.72,3.21]
[1753020498377,2.26277729,182.76,182.72,3.21]
[1753020498980,2.26277729,182.76,182.74,5.4697]
[1753020499182,2.26277729,182.76,182.75,3.21]
[1753020500079,2.26277729,182.76,182.75,8.6796]
[1753020500776,5.14277729,182.76,182.75,3.21]
[1753020501178,2.26277729,182.77,182.75,3.21]
[1753020501376,5.14277729,182.77,182.76,3.21]
[1753020501681,2.26277729,182.77,182.76,3.21]
[1753020502280,2.26277729,182.77,182.76,8.6793]
[1753020503080,2.26277729,182.77,182.76,3.21]
[1753020503382,4.54322457,182.77,182.76,3.21]
[1753020503580,2.26277729,182.77,182.76,3.21]
[1753020504182,4.54462463,182.77,182.76,3.21]
[1753020504388,7.42462463,182.77,182.76,3.21]
[1753020506478,2.88,182.76,182.69,3.21]
[1753020506678,2.26277729,182.71,182.65,3.21]
[1753020506887,5.14277729,182.69,182.65,3.21]
[1753020507181,5.14277729,182.69,182.68,3.21]
[1753020507382,2.26277729,182.69,182.68,3.21]
[1753020507585,2.26277729,182.69,182.68,8.6817]
[1753020507883,2.26277729,182.69,182.68,3.21]
[1753020508185,2.26277729,182.71,182.7,2.96]
[1753020508381,5.15277729,182.71,182.7,2.96]
[1753020508581,7.4347029,182.71,182.7,2.96]
[1753020508782,2.26277729,182.71,182.7,2.96]
[1753020509184,4.54356223,182.71,182.63,2.96]
[1753020509378,2.26277729,182.68,182.63,2.96]
[1753020509684,5.15277729,182.68,182.67,5.472]
[1753020509887,5.15277729,182.68,182.67,8.432]
[1753020510085,5.15277729,182.68,182.67,2.96]
[1753020510286,5.15277729,182.7,182.68,2.96]
[1753020510688,2.89,182.69,182.68,2.96]
[1753020510980,2.89,182.69,182.66,2.96]
[1753020511185,2.26277729,182.68,182.67,2.96]
[1753020511387,2.26277729,182.68,182.67,8.432]
[1753020511588,2.26277729,182.68,182.67,2.96]
[1753020511887,2.26277729,182.68,182.67,8.432]
[1753020512087,5.15277729,182.68,182.67,8.432]
[1753020512687,2.26277729,182.68,182.67,8.432]
[1753020512883,2.26277729,182.68,182.66,2.96]
[1753020513189,2.89,182.67,182.66,2.96]
[1753020513388,2.89,182.71,182.67,2.96]
[1753020513687,2.26277729,182.68,182.67,2.96]
[1753020513888,5.15277729,182.68,182.67,8.432]
[1753020514882,2.89,182.66,182.65,2.96]
[1753020515088,5.15277729,182.66,182.65,2.96]
[1753020515989,5.15277729,182.66,182.65,8.4326]
[1753020516284,2.89,182.65,182.63,2.96]
[1753020516488,2.89,182.65,182.54,372.27027658]
[1753020516489,2.89,182.63,182.57,2.96]
[1753020516685,2.26277729,182.64,182.57,5.22277729]
[1753020516886,2.26277729,182.64,182.58,2.96]
[1753020517487,2.26277729,182.6,182.55,2.96]
[1753020517789,2.89,182.62,182.54,367.72]
[1753020518084,2.26277729,182.6,182.54,367.72]
[1753020518485,2.26277729,182.62,182.59,2.96]
[1753020518685,2.26277729,182.66,182.59,2.96]
[1753020518885,2.26277729,182.68,182.65,2.96]
[1753020519484,2.26277729,182.68,182.66,5.4723]
[1753020519683,2.89,182.67,182.57,2.26277729]
[1753020519888,2.26277729,182.64,182.63,2.96]
[1753020520087,5.15277729,182.64,182.62,5.4734]
[1753020520287,2.89,182.62,182.59,2.96]
[1753020520587,2.26277729,182.6,182.59,2.96]
[1753020520889,2.26277729,182.6,182.59,8.4344]
[1753020522389,2.89,182.63,182.59,2.96]
[1753020522586,2.26277729,182.7,182.59,2.96]
[1753020522587,2.26277729,182.6,182.59,2.96]
[1753020522985,2.26277729,182.6,182.59,8.4344]
[1753020523382,2.89,182.65,182.59,2.96]
[1753020523688,2.89,182.64,182.62,8.4334]
[1753020523988,2.26277729,182.63,182.62,8.4334]
[1753020524387,2.26277729,182.65,182.62,2.96]
[1753020524986,2.26277729,182.65,182.57,2.26277729]
[1753020524987,2.26277729,182.65,182.64,5.4729]
[1753020525188,2.26277729,182.65,182.64,8.4329]
[1753020528591,2.26277729,182.65,182.57,2.26277729]
[1753020528592,2.26277729,182.67,182.66,8.432]
[1753020528894,5.15277729,182.67,182.66,5.472]
[1753020529196,5.15277729,182.67,182.66,8.432]
[1753020529391,2.89,182.66,182.65,5.4725]
[1753020529592,5.15277729,182.66,182.65,5.4725]
[1753020529789,2.89,182.66,182.65,8.4325]
[1753020529990,5.15277729,182.66,182.65,8.4325]
[1753020531197,2.26277729,182.66,182.65,8.4325]
[1753020531390,5.15277729,182.66,182.65,8.4325]
[1753020531592,2.89,182.65,182.64,5.4728]
[1753020531790,5.15277729,182.65,182.64,5.4728]
[1753020532493,5.15277729,182.65,182.64,8.4328]
[1753020534293,5.15277729,182.65,182.64,5.4728]
[1753020534500,5.15277729,182.65,182.64,8.4328]
[1753020535095,2.89,182.65,182.64,8.4328]
[1753020535299,5.15277729,182.65,182.64,8.4328]
[1753020536604,5.15277729,182.65,182.64,5.4728]
[1753020536801,5.15277729,182.65,182.64,8.4328]
[1753020537002,2.26277729,182.65,182.64,8.4328]
[1753020539899,2.26277729,182.65,182.64,2.96]
[1753020540107,2.89,182.64,182.56,2.96]
[1753020540306,2.89,182.66,182.56,2.96]
[1753020540598,2.26277729,182.64,182.63,8.4332]
[1753020543503,5.15277729,182.64,182.63,2.96]
[1753020544202,2.89,182.63,182.54,2.96]
[1753020544407,2.26277729,182.7,182.54,2.96]
[1753020544408,2.26277729,182.62,182.54,2.96]
[1753020544602,2.26277729,182.62,182.61,5.4738]
[1753020544799,2.26277729,182.62,182.61,8.4338]
[1753020545205,2.26277729,182.62,182.61,2.96]
[1753020545405,2.26277729,182.62,182.53,4.5467802]
[1753020545605,2.89,182.61,182.6,2.96]
[1753020545806,5.15277729,182.61,182.6,2.96]
[1753020546408,2.89,182.65,182.6,2.96]
[1753020546604,2.89,182.65,182.62,2.96]
[1753020546605,2.26277729,182.63,182.62,2.96]
[1753020547814,2.26277729,182.63,182.62,8.4335]
[1753020548607,6.10524471,182.71,182.62,2.96]
[1753020548910,2.26277729,182.69,182.61,2.96]
[1753020549111,2.26277729,182.67,182.66,5.472]
[1753020549310,2.26277729,182.67,182.66,8.432]
[1753020549508,2.26277729,182.67,182.58,2.26277729]
[1753020549509,2.89,182.68,182.67,2.96]
[1753020549715,2.26277729,182.68,182.67,8.432]
[1753020550420,2.26277729,182.68,182.57,4.5704909]
[1753020550421,5.15277729,182.68,182.58,2.96]
[1753020550713,2.26277729,182.65,182.58,2.96]
[1753020551210,2.26277729,182.63,182.58,2.96]
[1753020551511,2.26277729,182.63,182.62,5.4735]
[1753020551705,2.26277729,182.63,182.56,4.5704909]
[1753020551706,5.15277729,182.63,182.57,2.96]
[1753020551914,2.26277729,182.59,182.58,2.96]
[1753020552218,5.15277729,182.59,182.58,2.96]
[1753020552412,5.15277729,182.59,182.53,9.13665814]
[1753020552719,2.26277729,182.58,182.53,4.5467802]
[1753020553118,2.26277729,182.58,182.56,5.4751]
[1753020553318,2.26277729,182.58,182.57,2.96]
[1753020554925,2.26277729,182.58,182.57,8.435]
[1753020555722,2.26277729,182.61,182.59,2.96]
[1753020555916,2.26277729,182.63,182.59,2.96]
[1753020556814,2.26277729,182.63,182.54,2.26277729]
[1753020556815,2.26277729,182.63,182.62,2.96]
[1753020557426,5.15277729,182.63,182.62,2.96]
[1753020558127,5.15277729,182.63,182.54,2.96]
[1753020558317,6.10524471,182.64,182.54,2.96]
[1753020558523,2.26277729,182.64,182.56,2.96]
[1753020559422,2.26277729,182.64,182.59,2.96]
[1753020560028,14.46724471,182.67,182.62,5.4733]
[1753020560228,2.26277729,182.65,182.64,2.96]
[1753020560433,5.15277729,182.65,182.64,2.96]
[1753020560728,2.89,182.64,182.57,2.96]
[1753020561024,2.89,182.56,182.53,4.5467802]
[1753020561227,2.26277729,182.56,182.55,2.96]
[1753020562832,2.89,182.58,182.55,2.96]
[1753020563034,2.26277729,182.56,182.55,2.96]
[1753020563935,2.89,182.55,182.53,12.9827802]
[1753020564335,2.26277729,182.54,182.53,7.5067802]
[1753020564734,2.26277729,182.54,182.42,2.26277729]
[1753020564930,2.26277729,182.54,182.44,2.26277729]
[1753020565830,3.72277729,182.54,182.49,5.4773]
[1753020566640,2.26277729,182.52,182.49,5.4773]
[1753020566934,2.26277729,182.5,182.4,4.58987794]
[1753020567136,2.26277729,182.5,182.41,106.10277729]
[1753020567330,2.26277729,182.5,182.46,2.96]
[1753020567532,2.26277729,182.48,182.47,2.96]
[1753020567935,3.72277729,182.48,182.44,5.4789]
[1753020568137,3.72277729,182.48,182.46,3.09]
[1753020568538,2.26277729,182.48,182.47,3.09]
[1753020568927,3.72277729,182.52,182.47,3.09]
[1753020568928,2.26277729,182.5,182.47,3.09]
[1753020569128,2.26277729,182.48,182.41,103.84]
[1753020569736,1.46,182.5,182.42,3.09]
[1753020569933,2.26277729,182.47,182.42,3.09]
[1753020570237,2.26277729,182.45,182.43,3.09]
[1753020570431,2.26277729,182.44,182.43,3.09]
[1753020572037,2.26277729,182.44,182.36,3.09]
[1753020572233,2.26277729,182.4,182.36,3.09]
[1753020572536,2.26277729,182.4,182.29,3.09]
[1753020572732,2.26277729,182.4,182.32,3.09]
[1753020572936,2.26277729,182.38,182.37,3.09]
[1753020573136,2.26277729,182.38,182.29,3.09]
[1753020573433,2.26277729,182.38,182.28,4.5467802]
[1753020573434,2.26277729,182.35,182.34,3.09]
[1753020574135,2.26277729,182.37,182.29,3.09]
[1753020574530,2.26277729,182.35,182.29,3.09]
[1753020575042,2.26277729,182.33,182.29,3.09]
[1753020575242,2.26277729,182.31,182.3,3.09]
[1753020575638,2.26277729,182.31,182.3,8.5731]
[1753020576643,2.26277729,182.31,182.3,5.4831]
[1753020576840,1.47,182.33,182.3,3.09]
[1753020577034,1.47,182.41,182.29,3.09]
[1753020577240,2.26277729,182.35,182.29,3.09]
[1753020577440,2.26277729,182.35,182.34,3.09]
[1753020577739,3.73277729,182.35,182.33,3.09]
[1753020577938,2.26277729,182.34,182.33,3.09]
[1753020578644,2.26277729,182.34,182.33,8.5722]
[1753020578846,2.26277729,182.36,182.29,3.09]
[1753020579544,2.26277729,182.31,182.29,3.09]
[1753020579844,1.47,182.34,182.31,3.09]
[1753020580145,2.26277729,182.32,182.31,3.09]
[1753020580542,2.26277729,182.32,182.29,3.09]
[1753020580743,2.26277729,182.3,182.29,3.09]
[1753020580944,2.26277729,182.3,182.28,7.6367802]
[1753020580945,3.73277729,182.3,182.28,7.6367802]
[1753020581140,1.47,182.3,182.28,7.6367802]
[1753020581348,2.26277729,182.3,182.29,3.09]
[1753020582148,2.26277729,182.3,182.28,4.5467802]
[1753020582343,2.26277729,182.3,182.28,7.6367802]
[1753020582547,2.26277729,182.3,182.29,3.09]
[1753020583143,2.26277729,182.31,182.3,3.09]
[1753020583446,2.26277729,182.33,182.3,3.09]
[1753020583644,2.26277729,182.31,182.28,4.5467802]
[1753020583844,2.26277729,182.29,182.28,7.6367802]
[1753020584346,3.73277729,182.29,182.28,4.5467802]
[1753020584544,2.26277729,182.29,182.28,7.6367802]
[1753020584947,2.26277729,182.29,182.28,13.1204802]
[1753020585249,1.47,182.31,182.29,3.09]
[1753020585446,3.73277729,182.34,182.3,3.09]
[1753020585647,2.26277729,182.31,182.29,3.09]
[1753020586046,2.26277729,182.31,182.3,8.5729]
[1753020586246,1.47,182.35,182.3,3.09]
[1753020586442,3.76471711,182.34,182.32,5.4825]
[1753020586749,1.47,182.37,182.32,8.5725]
[1753020586945,2.26277729,182.34,182.33,3.09]
[1753020587146,2.26277729,182.34,182.33,8.5721]
[1753020587350,1.47,182.37,182.33,8.5721]
[1753020587648,2.26277729,182.35,182.29,3.09]
[1753020588151,2.26277729,182.37,182.29,3.09]
[1753020588345,1.47,182.39,182.31,3.09]
[1753020588541,2.26277729,182.39,182.31,3.09]
[1753020588746,2.26277729,182.39,182.37,3.09]
[1753020588942,1.47,182.36,182.28,4.5467802]
[1753020589252,2.26277729,182.34,182.33,3.09]
[1753020589743,2.26277729,182.35,182.29,3.09]
[1753020590448,2.26277729,182.38,182.32,3.09]
[1753020590638,6.18595283,182.37,182.32,3.09]
[1753020590843,2.26277729,182.37,182.34,5.4817]
[1753020591045,2.26277729,182.38,182.3,2.26277729]
[1753020591249,2.26277729,182.38,182.31,3.09]
[1753020591549,2.26277729,182.38,182.37,3.09]
[1753020592446,6.18788328,182.38,182.37,3.09]
[1753020592751,6.18785211,182.38,182.37,3.09]
[1753020593450,1.47,182.37,182.35,3.09]
[1753020593651,2.26277729,182.36,182.35,3.09]
[1753020593850,6.18817593,182.36,182.35,3.09]
[1753020594047,3.92539864,182.36,182.35,3.09]
[1753020594248,2.26277729,182.37,182.36,5.4813]
[1753020594447,6.19130785,182.37,182.36,8.5713]
[1753020594648,6.19130785,182.37,182.36,3.09]
[1753020596447,6.19130785,182.37,182.36,8.5713]
[1753020596850,2.26277729,182.37,182.36,3.09]
[1753020597651,3.73277729,182.37,182.34,3.09]
[1753020597853,2.26277729,182.35,182.32,5.4824]
[1753020598048,2.26277729,182.35,182.28,4.5467802]
[1753020598250,2.26277729,182.37,182.28,6.80955749]
[1753020598451,2.26277729,182.37,182.29,3.25]
[1753020598954,2.26277729,182.39,182.33,3.25]
[1753020599448,2.26277729,182.39,182.38,5.4807]
[1753020599655,2.26277729,182.39,182.38,8.7307]
[1753020600154,2.26277729,182.39,182.38,3.25]
[1753020601657,1.46,182.38,182.29,3.25]
[1753020601857,1.46,182.37,182.29,3.25]
[1753020602156,2.26277729,182.31,182.28,4.5467802]
[1753020602355,2.26277729,182.34,182.26,3.25]
[1753020602356,3.72277729,182.29,182.26,3.25]
[1753020602550,2.26277729,182.31,182.22,2.26277729]
[1753020602748,2.26277729,182.34,182.27,3.25]
[1753020603254,3.70681933,182.35,182.34,3.25]
[1753020603457,3.70681933,182.37,182.26,3.25]
[1753020603748,3.70681933,182.37,182.27,3.25]
[1753020604156,1.46,182.36,182.33,3.25]
[1753020604356,1.46,182.36,182.34,3.25]
[1753020605156,3.70681933,182.37,182.35,3.25]
[1753020605859,1.46,182.36,182.21,3.25]
[1753020606051,5.16681933,182.32,182.23,3.25]
[1753020606257,3.70681933,182.3,182.23,3.25]
[1753020606454,3.70681933,182.3,182.27,5.4838]
[1753020606654,3.70681933,182.3,182.29,3.25]
[1753020607060,1.46,182.39,182.23,3.70681933]
[1753020607357,1.46,182.37,182.24,3.25]
[1753020607557,2.297452,182.36,182.33,5.4822]
[1753020607856,3.70681933,182.35,182.34,3.25]
[1753020608561,3.70681933,182.37,182.34,3.25]
[1753020608759,1.46,182.36,182.27,3.25]
[1753020608952,3.70681933,182.31,182.27,3.25]
[1753020609358,1.46,182.34,182.27,3.25]
[1753020609558,2.30455842,182.33,182.27,3.25]
[1753020609761,3.70681933,182.31,182.29,5.4831]
[1753020610059,3.70681933,182.31,182.3,3.25]
[1753020611264,9.74699458,182.38,182.3,3.25]
[1753020611265,1.46,182.33,182.3,3.25]
[1753020611563,3.70681933,182.31,182.3,3.25]
[1753020611759,3.70681933,182.31,182.28,3.25]
[1753020611960,5.16681933,182.31,182.28,3.25]
[1753020612166,3.70681933,182.29,182.28,3.25]
[1753020613470,5.16681933,182.29,182.26,3.25]
[1753020613668,3.70681933,182.27,182.26,3.25]
[1753020614174,3.70681933,182.27,182.21,3.25]
[1753020614471,3.70681933,182.29,182.26,3.25]
[1753020614873,3.70681933,182.28,182.25,5.4845]
[1753020615068,1.46,182.31,182.26,3.25]
[1753020615272,3.70681933,182.32,182.26,3.25]
[1753020615468,3.70681933,182.3,182.26,3.25]
[1753020616376,1.46,182.34,182.21,3.25]
[1753020616673,3.70681933,182.27,182.26,5.4843]
[1753020616873,3.70681933,182.29,182.26,3.25]
[1753020617172,1.46,182.33,182.26,3.25]
[1753020617368,3.70681933,182.3,182.26,3.25]
[1753020617776,3.70681933,182.3,182.27,5.4839]
[1753020618168,3.70681933,182.3,182.28,3.25]
[1753020618669,1.46,182.34,182.29,3.25]
[1753020618864,1.46,182.33,182.3,3.25]
[1753020619070,3.70681933,182.31,182.3,3.25]
[1753020619269,5.16681933,182.31,182.22,3.25]
[1753020619470,3.70681933,182.27,182.22,3.25]
[1753020619666,3.70681933,182.27,182.25,5.4843]
[1753020619966,3.70681933,182.27,182.26,3.25]
[1753020620171,1.46,182.3,182.21,3.25]
[1753020620370,3.70681933,182.28,182.21,3.25]
[1753020620876,3.70681933,182.28,182.25,5.4843]
[1753020621074,3.70681933,182.28,182.26,3.25]
[1753020621873,1.46,182.27,182.24,8.7348]
[1753020622072,3.70681933,182.25,182.24,8.7348]
[1753020622675,3.70681933,182.25,182.18,3.25]
[1753020622871,3.70681933,182.22,182.18,3.25]
[1753020623068,3.70681933,182.25,182.24,5.4846]
[1753020623271,2.27718995,182.25,182.16,109.62]
[1753020623673,2.27718995,182.25,182.23,5.4849]
[1753020623871,2.27718995,182.25,182.24,3.25]
[1753020624269,3.73718995,182.25,182.22,3.25]
[1753020624469,2.27718995,182.23,182.22,3.25]
[1753020624670,2.27718995,182.23,182.2,3.25]
[1753020624876,2.27718995,182.21,182.2,3.25]
[1753020625172,2.27718995,182.21,182.14,3.25]
[1753020625375,2.27718995,182.17,182.14,3.25]
[1753020625578,1.46,182.23,182.19,3.25]
[1753020625878,2.27718995,182.2,182.13,3.25]
[1753020626073,2.27718995,182.2,182.19,8.7364]
[1753020628275,2.27718995,182.2,182.19,3.25]
[1753020629573,2.27718995,182.2,182.1,368.68]
[1753020629777,2.27718995,182.18,182.17,8.717]
[1753020630178,3.13,182.39,182.18,3.23]
[1753020630382,3.13,182.37,182.25,3.23]
[1753020630578,2.27718995,182.35,182.27,3.23]
[1753020630783,2.27718995,182.33,182.27,3.23]
[1753020630983,2.27718995,182.31,182.21,13.24838995]
[1753020631183,2.27718995,182.29,182.22,3.23]
[1753020631378,2.27718995,182.27,182.25,3.23]
[1753020631582,2.27718995,182.27,182.26,3.23]
[1753020631778,2.27718995,182.27,182.26,8.7142]
[1753020632182,2.27718995,182.27,182.19,196.66579997]
[1753020632383,2.27718995,182.27,182.24,3.23]
[1753020632981,2.27718995,182.27,182.19,196.66579997]
[1753020633181,2.27718995,182.28,182.2,3.23]
[1753020633684,2.27718995,182.26,182.2,3.23]
[1753020634179,2.27718995,182.26,182.24,8.7147]
[1753020634576,3.13,182.25,182.2,3.23]
[1753020634884,5.40718995,182.23,182.21,3.23]
[1753020635279,2.27718995,182.22,182.21,3.23]
[1753020635485,5.40718995,182.22,182.19,3.23]
[1753020635785,3.13,182.21,182.19,3.23]
[1753020635994,3.13,182.21,182.15,109.14]
[1753020635995,3.13,182.19,182.16,3.23]
[1753020636280,2.27718995,182.17,182.1,3.23]
[1753020636481,5.40718995,182.17,182.14,3.23]
[1753020637287,6.84443817,182.17,182.14,3.23]
[1753020637990,3.13,182.16,182.14,3.23]
[1753020638184,3.13,182.16,182.06,109.14]
[1753020638485,3.13,182.15,182.13,3.23]
[1753020638891,3.71443817,182.17,182.14,3.23]
[1753020639193,3.13,182.16,182.14,3.23]
[1753020639991,6.84443817,182.15,182.12,8.7182]
[1753020640397,3.13,182.15,182.13,3.23]
[1753020640687,3.71443817,182.16,182.07,3.23]
[1753020640886,3.71443817,182.17,182.14,5.4876]
[1753020641087,3.71443817,182.17,182.04,10.9816]
[1753020641290,3.71443817,182.27,182.05,108.88]
[1753020641491,3.71443817,182.15,182.14,3.23]
[1753020641692,3.13,182.17,182.14,3.23]
[1753020641993,3.71443817,182.17,182.08,3.23]
[1753020642589,3.71443817,182.17,182.05,108.88]
[1753020642590,3.71443817,182.17,182.14,5.4876]
[1753020642891,3.71443817,182.17,182.15,3.23]
[1753020643195,3.71443817,182.17,182.16,3.23]
[1753020643595,6.84443817,182.17,182.14,3.23]
[1753020643796,6.84443817,182.17,182.15,3.23]
[1753020644095,3.71443817,182.17,182.13,5.4881]
[1753020644291,6.84443817,182.15,182.12,3.23]
[1753020644595,3.71443817,182.27,182.02,373.26147584]
[1753020644596,6.84443817,182.13,182.07,3.23]
[1753020644788,6.84443817,182.13,182.11,8.7186]
[1753020644992,3.71443817,182.13,182.12,3.23]
[1753020645292,3.71443817,182.14,182.12,3.23]
[1753020645693,3.71443817,182.14,182.04,3.71443817]
[1753020645890,3.71443817,182.16,182.14,3.23]
[1753020646093,6.84443817,182.16,182.14,3.23]
[1753020646289,3.13,182.15,182.12,3.23]
[1753020646486,6.84443817,182.14,182.12,3.23]
[1753020647098,3.71443817,182.14,182.13,3.23]
[1753020648097,3.13,182.13,182.11,8.7187]
[1753020648598,3.71443817,182.14,182.05,3.23]
[1753020648988,3.13,182.13,182.03,4.5467802]
[1753020649191,3.71443817,182.11,182.04,3.23]
[1753020649604,3.71443817,182.11,182.08,5.4895]
[1753020649799,3.71443817,182.11,182.09,3.23]
[1753020650100,3.71443817,182.11,182.03,4.5467802]
[1753020650101,3.71443817,182.11,182.1,3.23]
[1753020650402,3.71443817,182.11,182.04,3.23]
[1753020650704,3.13,182.13,182.1,3.23]
[1753020650897,6.84443817,182.13,182.11,3.23]
[1753020651199,3.13,182.11,182.04,3.23]
[1753020651402,3.13,182.1,182.07,3.23]
[1753020651600,3.71443817,182.09,182.08,3.23]
[1753020652096,6.84443817,182.09,182.06,3.23]
[1753020652303,3.71443817,182.07,182.06,3.23]
[1753020652998,3.71443817,182.09,182.06,3.23]
[1753020653303,3.71443817,182.09,182.08,3.23]
[1753020653497,3.71443817,182.1,182.09,3.23]
[1753020654102,6.84443817,182.1,182.09,3.23]
[1753020654700,6.84443817,182.1,182.04,3.23]
[1753020655298,6.84443817,182.1,182.03,4.5467802]
[1753020655602,3.13,182.1,182.07,5.4897]
[1753020655901,6.84443817,182.1,182.08,3.23]
[1753020656405,3.13,182.08,182.06,3.23]
[1753020656601,3.71443817,182.08,182.04,3.23]
[1753020656797,3.71443817,182.16,182.04,3.23]